Cogmind - Beta 15 @@@ ROGUE MODE // 2025.05.19 @ 19:43:06 Player: VagabondTruffle Result: Destroyed by RL-4LM(R) with Subdweller Shrapnel Launcher Performance ------------- Evolutions (0) 0 Regions Visited (2) 400 Robots Destroyed (12) 60 Value Destroyed (125) 125 Prototype IDs (0) 0 Alien Tech Used (0) 0 Bonus (0) 0 TOTAL SCORE: 585 Bonus ------- None Cogmind --------- Core Integrity 0/250 Matter 225/300 Energy 99/100 System Corruption 0% Temperature Cool (0) Movement Core (50) Location -10/Subcaves Parts ------- > --- POWER (1) -------- (None) > --- PROPULSION (2) --- (None) > --- UTILITY (2) ------ (None) > --- WEAPON (2) ------- (None) > --- INVENTORY (5) ---- EM Pulse Gun Light Assault Rifle Light Assault Rifle Subdweller Shrapnel Launcher Shrapnel Trap Peak State ------------ > --- POWER ------------ Light Ion Engine > --- PROPULSION ------- Light Treads Light Treads > --- UTILITY ---------- Small Storage Unit Seismic Detector > --- WEAPON ----------- Small Laser Light Assault Rifle > --- INVENTORY -------- Light Ion Engine Aluminum Leg Aluminum Leg Compact Wheel Compact Wheel EM Pulse Gun [Rating: 7] Favorites ----------- Power Light Ion Engine Engine Light Ion Engine Propulsion Light Treads Treads Light Treads Leg Aluminum Leg Utility Small Storage Unit Device Seismic Detector Storage Small Storage Unit Weapon Light Assault Rifle Energy Gun Small Laser Ballistic Gun Light Assault Rifle Launcher Grenade Launcher Build | -11 -10 -10 ------- Run | Yrd Mat Sub Slots Evolved . | . . . Power . | . . . Propulsion . | . . . Utility . | . . . Weapon . | . . . Parts Attached 12 | 7 . 5 Power 2 | 1 . 1 Engine 2 | 1 . 1 Core . | . . . Reactor . | . . . Propulsion 3 | 2 . 1 Treads 2 | 2 . . Leg 1 | . . 1 Wheel . | . . . Hover . | . . . Flight . | . . . Utility 2 | 2 . . Device 1 | 1 . . Storage 1 | 1 . . Processor . | . . . Hackware . | . . . Protection . | . . . Artifact . | . . . Weapon 5 | 2 . 3 Energy Gun 1 | 1 . . Energy Cannon . | . . . Ballistic Gun 3 | 1 . 2 Ballistic Cannon . | . . . Launcher 1 | . . 1 Special Weapon . | . . . Impact Weapon . | . . . Slashing Weapon . | . . . Piercing Weapon . | . . . Special Melee Weapon . | . . . Unidentified Prototypes . | . . . Parts Lost 5 | . . 5 Power 2 | . . 2 Propulsion 1 | . . 1 Utility 1 | . . 1 Weapon 1 | . . 1 Highest Loss Streak 3 | . . 3 To Critical Strikes . | . . . Average Backups 5 | 4 6 5 Power . | . 1 . Propulsion 2 | 2 4 1 Utility . | . . . Weapon 2 | . 1 3 Tool/Special . | . . . Unused Backups 5 | . . 5 Power . | . . . Propulsion 3 | . . 3 Utility . | . . . Weapon 2 | . . 2 Tool/Special . | . . . Average Slot Usage (%) 94 | . 100 90 Engine 11 | . 14 10 Treads 24 | . 28 22 Leg 2 | . . 3 Device 13 | . 14 13 Storage 13 | . 14 13 Energy Gun 5 | . 14 . Ballistic Gun 17 | . 14 19 Launcher 3 | . . 6 Peak Build Rating 7 | 7 7 7 Average Rating 6 | 5 7 6 On Entrance 4 | . 7 7 Naked Turns 55 | . . 55 Heaviest Build 13 | 11 11 13 Greatest Support 40 | 40 40 40 Greatest Overweight (x) . | . . . Average Overweight (x) . | . . . Largest Inventory Capacity 8 | 8 8 8 Average Capacity 7 | 7 8 7 Most Carried 8 | 6 7 8 Average Carried 6 | 4 6 6 Final Capacity 8 | 8 8 5 Final Carried 7 | 6 7 5 Class Distribution -------------------- 100% | Mutant Dominant Class ---------------- Mutant | -10/Materials Mutant | -10/Subcaves Resources | -11 -10 -10 ----------- Run | Yrd Mat Sub Matter Collected 318 | 280 8 30 Remotely . | . . . Salvage Created 233 | 127 42 64 Parts 19 | 8 3 8 Haulers Intercepted . | . . . Recyclers Shooed 1 | . 1 . Parts Field Recycled . | . . . Retrieved Matter . | . . . Parts Self-Destructed 6 | . . 6 Prevented . | . . . Kills | -11 -10 -10 ------- Run | Yrd Mat Sub Combat Hostiles Destroyed 8 | . 1 7 Guns 4 | . 1 3 AOE 4 | . . 4 Classes Destroyed 5 | 2 2 1 Worker 1 | . 1 . Tunneler 2 | 2 . . Recycler 1 | 1 . . Swarmer 7 | . . 7 Grunt 1 | . 1 . Best Kill Streak 4 | 2 1 4 Combat Bots Only 4 | . 1 4 Max Kills in Single Turn 4 | 1 1 4 Gunslinging . | . . . Exploded 4 | . . 4 Melee . | . . . Uniques/NPCs Destroyed . | . . . Combat | -11 -10 -10 -------- Run | Yrd Mat Sub Hostile Shots Fired 70 | . 7 63 Missed 26 | . 1 25 Hits 44 | . 6 38 Projectile 44 | . 6 38 AOE 5 | . . 5 Critical Strikes 1 | . . 1 Damage Taken 730 | . 103 627 Core 261 | . . 261 Absorbed by Shields . | . . . Core Remaining (%) 100 | 100 . . Volleys Fired 39 | 10 18 11 Largest 2 | 2 2 2 Hottest 60 | 60 60 60 Shots Fired 67 | 20 32 15 Gun 60 | 20 32 8 Cannon . | . . . Launcher 7 | . . 7 Special . | . . . Kinetic 32 | 10 18 4 Thermal 28 | 10 14 4 Explosive 7 | . . 7 Electromagnetic . | . . . Robot Hit Streak 5 | 5 4 5 Robot Miss Streak 2 | 2 2 2 Penetration Max . | . . . Secondary Targets 2 | . . 2 Max Gunslinging Chain 1 | . . 1 Shots Hit Robots 38 | 12 17 9 Core Hits 21 | 6 5 10 Critical Kills . | . . . Critical Parts Destroyed . | . . . Critical Strikes . | . . . Melee Attacks . | . . . Impact . | . . . Slashing . | . . . Piercing . | . . . Sneak Attacks . | . . . Combat Hostiles . | . . . Follow-up Attacks . | . . . Damage Inflicted 672 | 96 169 407 Guns 313 | 96 169 48 Cannons . | . . . Explosions 359 | . . 359 Melee . | . . . Ramming . | . . . Kinetic 112 | 41 58 13 Thermal 201 | 55 111 35 Explosive 359 | . . 359 Electromagnetic . | . . . Impact . | . . . Slashing . | . . . Piercing . | . . . Highest Corruption . | . . . Average Corruption . | . . . Corruption Purged . | . . . Corruption Blocked . | . . . Overload Shots . | . . . Overflow Damage 3 | . . 3 Projectiles . | . . . Explosions 3 | . . 3 Melee . | . . . Knockbacks . | . . . Impact . | . . . Kinetic . | . . . Secondary . | . . . Self-Inflicted Damage 31 | . . 31 Shots 1 | . . 1 Rammed 1 | . 1 . Targets Rammed 1 | . 1 . Kicked . | . . . Crushed . | . . . Highest Temperature 76 | 40 76 . Average Temperature 22 | 17 25 . Received Heat Transfer 102 | . 36 66 Siege Activations . | . . . Martial Activations . | . . . Shielding Activations . | . . . Robots Disrupted . | . . . Combat Hostiles . | . . . Robots Corrupted . | . . . Combat Hostiles . | . . . Parts Fried . | . . . Impact Corruptions . | . . . Robots Melted . | . . . Combat Hostiles . | . . . Parts Melted . | . . . Heat Transferred 450 | 125 250 75 Parts Sabotaged . | . . . Parts Stolen . | . . . Parts Stripped . | . . . Power Chain Reactions . | . . . Alert | -11 -10 -10 ------- Run | Yrd Mat Sub Maximum Alert Level . | . . . Low Security (%) 100 | 100 100 . Level 1 . | . . . Level 2 . | . . . Level 3 . | . . . Level 4 . | . . . Level 5 . | . . . High Security . | . . . Max Security . | . . . Peak Influence 30 | 10 30 . Initial . | . . . Average 2 | 1 2 . Influence Increases 257 | 15 47 195 Destroy 0b10 Robot/C 160 | . 20 140 Destroy 0b10 Robot/NC 20 | 15 5 . Destroy Leader 20 | . 10 10 Successful Hack 12 | . 12 . Lose Combat Pursuer 45 | . . 45 Influence Decreases 257 | 15 47 195 Time Decay 237 | 15 47 175 Lost Part 20 | . . 20 Squads Dispatched 1 | . 1 . Investigation . | . . . Extermination . | . . . Reinforcement 1 | . 1 . Assault . | . . . Garrison . | . . . Intercept . | . . . Searches Triggered . | . . . Construction Impeded . | . . . Haulers Reinforced . | . . . Active Scanning Responses . | . . . Cargo Convoy Interrupts . | . . . Stealth | -11 -10 -10 --------- Run | Yrd Mat Sub Distress Signals . | . . . Communications Jammed . | . . . Distress Signals . | . . . Times Spotted 17 | . 6 11 Peak Tracking Total 6 | . 3 6 Tactical Retreats 2 | . . 2 Traps | -11 -10 -10 ------- Run | Yrd Mat Sub Traps Triggered 1 | . 1 . Indirectly . | . . . Trap Hack Attempts . | . . . Triggered . | . . . Disarmed . | . . . Reprogrammed . | . . . Reused . | . . . Traps Extracted . | . . . Installed . | . . . Triggered . | . . . Most Traps Carried 1 | . . 1 Machines | -11 -10 -10 ---------- Run | Yrd Mat Sub Machines Disabled . | . . . Max in Single Turn . | . . . Machines Repaired . | . . . Machines Dismantled . | . . . Machines Sabotaged . | . . . Overloaded Fab Kills . | . . . Hacking | -11 -10 -10 --------- Run | Yrd Mat Sub Machines Accessed 2 | . 2 . Terminals 1 | . 1 . Fabricators . | . . . Repair Stations . | . . . Recycling Units 1 | . 1 . Scanalyzers . | . . . Garrison Access . | . . . Total Hacks 4 | . 4 . Successful 2 | . 2 . Failed 2 | . 2 . Catastrophic 1 | . 1 . Database Lockouts . | . . . Manual 4 | . 4 . Terminals 2 | . 2 . Fabricators . | . . . Repair Stations . | . . . Recycling Units 2 | . 2 . Scanalyzers . | . . . Garrison Access . | . . . Terminal Hacks 2 | . 2 . Robot Analysis 2 | . 2 . Fabricator Hacks . | . . . Repair Station Hacks . | . . . Recycling Unit Hacks . | . . . Scanalyzer . | . . . Garrison Access Hacks . | . . . Unauthorized Hacks . | . . . Terminals . | . . . Fabricators . | . . . Repair Stations . | . . . Recycling Units . | . . . Scanalyzers . | . . . Garrison Access . | . . . Data Cores Recovered . | . . . Used . | . . . Hacking Detections 2 | . 2 . Full Trace Events . | . . . Feedback Events . | . . . Feedback Blocked . | . . . Robot Schematics Acquired . | . . . Robots Built . | . . . Authchips . | . . . Time . | . . . Total Robot Build Rating . | . . . Part Schematics Acquired . | . . . Parts Built . | . . . Authchips . | . . . Time . | . . . Total Part Build Rating . | . . . Parts Repaired . | . . . Time . | . . . Parts Recycled . | . . . Recycled Matter . | . . . Retrieved Matter . | . . . Retrieved Components . | . . . Parts Scanalyzed . | . . . Part Schematics Acquired . | . . . Parts Damaged . | . . . Bothacking | -11 -10 -10 ------------ Run | Yrd Mat Sub Used RIF Installer . | . . . Robots Hacked . | . . . Non-combat . | . . . Combat . | . . . Robot Hacks Applied . | . . . Relay Couplers Released . | . . . Fabnet Peak Effective % . | . . . Robots Rewired . | . . . Allies Hacked . | . . . Hacks Repelled . | . . . Allies | -11 -10 -10 -------- Run | Yrd Mat Sub Total Allies . | . . . Largest Group . | . . . Highest-Rated Group . | . . . Highest-Rated Ally . | . . . Total Orders . | . . . Ally Attacks . | . . . Total Damage . | . . . Kills . | . . . Allies Corrupted . | . . . Allies Melted . | . . . Intel | -11 -10 -10 ------- Run | Yrd Mat Sub Active Infowar (turns) 1140 | 41 418 681 Seismic 1140 | 41 418 681 Robot Analysis Total 2 | . 2 . Derelict Logs Recovered . | . . . Drone Launches . | . . . Drone Recoveries . | . . . Exploration | -11 -10 -10 ------------- Run | Yrd Mat Sub Turns Passed 1297 | 141 418 738 Spaces Moved 722 | 64 151 507 Core 115 | 4 . 111 Treads 607 | 60 151 396 Legs . | . . . Wheels . | . . . Hover . | . . . Flight . | . . . Fastest Speed 50 | 50 160 50 Average Speed 142 | 153 160 135 Slowest Speed 160 | 160 160 160 Overloaded Moves . | . . . Propulsion Burnouts . | . . . Robots Hopped . | . . . Potential Cave-ins . | . . . Cave-ins Triggered . | . . . Exploration Rate (%) 24 | 5 33 35 Regions Visited 2 Branch Regions 1 Pre-discovered Areas . | . . . Known Exits Taken . | . . . Unknown Exits Taken 2 | 1 1 . Scrap Searched 2 | . . 2 Spaces Dug . | . . . Terrain Destroyed 41 | . . 41 Melee . | . . . Projectile . | . . . AOE 41 | . . 41 Terrain Rammed . | . . . Walls Destroyed . | . . . Machines Disabled . | . . . Actions | -11 -10 -10 --------- Run | Yrd Mat Sub Total 928 | 86 299 543 Wait 141 | . 129 12 Move 720 | 63 150 507 Hop . | . . . Pick Up 10 | 6 1 3 Fast Attach 8 | 7 . 1 Attach 2 | . . 2 Detach . | . . . Swap 2 | . . 2 Drop 5 | . . 5 Fire 39 | 10 18 11 Melee . | . . . Ram . | . . . Kick . | . . . Crush 1 | . 1 . Escape Stasis . | . . . Rewire . | . . . Trap . | . . . Miscellaneous . | . . . Route ------- -11/Scrapyard -10/Materials (discovered 3 exits: [*Mat] / [*Min] / [*Sub]) -10/Subcaves (discovered 1 exit: [*Mat]) History --------- Turn | Location | Event 3 | -11/Scrapyard | Discovered new exit (range 16) 142 | -11/Scrapyard | Entered Materials 250 | -10/Materials | Discovered new exit (range 16) 314 | -10/Materials | Build established: Mutant 342 | -10/Materials | Discovered new exit (range 4) 537 | -10/Materials | Discovered new exit (range 6) 560 | -10/Materials | Entered Subcaves 561 | -10/Subcaves | Approached by a straggling Scientist 610 | -10/Subcaves | Discovered new exit (range 7) 837 | -10/Subcaves | Shifting Twisted Machinery released Flamer 962 | -10/Subcaves | Shifting Twisted Machinery released Sub. Shrapnel Launcher 1236 | -10/Subcaves | Ambushed by Subdweller buried in earth 1236 | -10/Subcaves | Ambushed by Subdweller buried in earth 1242 | -10/Subcaves | Core integrity fell below 50% 1243 | -10/Subcaves | Released all parts (4) 1249 | -10/Subcaves | Core integrity fell below 20% 1274 | -10/Subcaves | Lost 3 parts (1p1u1w) 1287 | -10/Subcaves | A swath of the cavern ceiling suddenly collapsed 1298 | -10/Subcaves | Destroyed by RL-4LM(R) with Subdweller Shrapnel Launcher Last Messages --------------- suitable candidates yet." 4H-QS8(c): "I think it's somewhere southwest of here" 01047_ Lgt. Treads destroyed. 01047_ Destroyed Lgt. Treads. 4H-QS8(c): "I think it's somewhere west of here" 4H-QS8(c): "I think it's somewhere southwest of here" 4H-QS8(c): "I think it's somewhere west of here" 01219_ 4H-QS8(c) destroyed. 01234_ Lgt. Ion Engine destroyed. 01237_ 8S-J89(R): "ARGHSUB!" 01237_ KI-8LC(R): "ARGHSUB!" 01241_ The unstable cave ceiling collapses. 01241_ Seismic Detector destroyed. 01243_ Grenade Launcher destroyed. 01243_ KI-8LC(R) suffers critical hit (Destroy). 01243_ Released Lgt. Assault Rifle. 01243_ Released Lgt. Treads. 01243_ Released Sml. Storage Unit. 01243_ Released Aluminum Leg. A swath of the cavern ceiling suddenly collapses. Map ----- +----------------------------------------------------+ | ??# ####????## # ??## # | | ?## #??#####?## #??????????## ##### | | ?# ##?? #??### # ##???????????#####???# | | ?## ##??? ##???### #????????????######### | | ## #???# ######## ##??????????## ## | | # ##?### #### ###??????### | | # #### #?##### ##???### ! | | # #????## ###?# | | #???## ### | | ### #??### ## | | ##?### ###### | | # ##????## ## ## ## ![= | | ##??????## #?## ### # = | | ??? ## ## ##?####?## ## | | ###?????#### # | | ##???????# ####### | | # #### ## # ###### R #???????# ##??????# | | ##???????####?????### #???????# #???????? | | ????????????????????##R #???????# #????????? | | ?????????????????????# #???????# ????????? | | ???????????###??????## #???????# #???????? | | ????????#### #?????## ##???????# ???????? | | ??????#### #??#### ###?????? ???????? | | ??##### # ###### ##????? ??????? | | ??# ### ##;;; ##???? ## ???????? | | ??# ## ###; @ #???? ?? ????????? | | # # #;; ## #????????????????? | | ????# ##### ##;## ### ;;# ???????????? | | ???????????######## #?# ;;#? ?????????? | | ????????????###???# ##?# ;; ?? ?? ?????????? | | ??????????????????####?? #?# ?????????????????? | | ???????????????????????? ?? ????????????????? | | ???????????????????????? ??? ???????????????? | | ???????????????????????? ??? ??????????????? | | ???????????????????????? ???? #?????????????? | | ???????????????????????? ????? #?????????????? | | ????????????????????????# ??????#?????????????? | | ????????????????????????? ????????????????????? | | ????????????????????????? ???????????????????? | | ????????????????????????? ####???????????????????? | | ?????????????????????????#???????????????????????? | | ?????????????????????????????????????????????????? | | ?????????????????????????????????????????????????? | | ?????????????????????????????????????????????????? | | ?????????????????????????????????????????????????? | | ?????????????????????????????????????????????????? | | ?????????????????????????????????????????????????? | | ?????????????????????????????????????????????????? | | ?????????????????????????????????????????????????? | | ?????????????????????????????????????????????????? | +----------------------------------------------------+ Best States ------------- Heat Dissipation 25 Energy Generation 10 Energy Capacity 125 Matter Stores 300 Matter Capacity 300 Sight Range 16 Terrain Scan Density 10 Evasion (%) 50 Recoil Reduction 2 Item Schematics ----------------- None Robot Schematics ------------------ None Fabricated ------------ Nothing Repaired ---------- Nothing Alien Tech Used ----------------- None Achievements -------------- None Challenges ------------ None Game ------ Seed FlakBeamBeamcaster Manual? 0 Play Time 00:08:21 Cumulative 684.0 hours Start 2025.05.12 @ 12:23:19 End 2025.05.19 @ 19:43:06 Sessions 7 Manual Loads 0 Difficulty Rogue Special Mode None Game No. 611 Rogue 396 Adventurer 112 Explorer 103 Win Type - Total 44 Types 28/0/8/3/0/0/4/1/0/0 Lore% 76 Gallery% 80 Achievement% 82 Wizard Run 0 Options --------- Layout 0 ASCII 1 Keyboard 1 Movement Vi Keybinds 1 Fullscreen 2 Font 20/Terminus Map View 72x56 Zoom Use 0% Tactical HUD 1 Map Filters NONE Filters NONE Steam 0 RUN: 512216f5-c452-4252-9268-461a6ace9f37